bitfinex/quotes_SOLUSD_20260220
["timestamp","ask_amount","ask_price","bid_price","bid_amount"]
[1771607719630,3.84505069,83.349,83.291,42.02134683]
[1771607719631,11.81727405,83.38,83.331,4.27471581]
[1771607719829,11.81727405,83.37,83.331,4.27471581]
[1771607720018,11.99501007,83.368,83.332,12.000192]
[1771607720221,11.81727405,83.36,83.331,4.27471581]
[1771607720423,11.81727405,83.34,83.302,4.27471581]
[1771607720622,3.80660018,83.309,83.252,17.94248187]
[1771607720824,9.47766947,83.308,83.212,4.27471581]
[1771607721017,11.81727405,83.26,83.22,11.81727405]
[1771607721331,3.73084881,83.259,83.221,4.27471581]
[1771607721712,15.54812286,83.27,83.221,4.27471581]
[1771607721925,3.73084881,83.257,83.222,12.01605344]
[1771607722421,11.81727405,83.26,83.223,4.27471581]
[1771607724118,3.69383402,83.292,83.225,4.27471581]
[1771607724432,11.81727405,83.27,83.229,4.27471581]
[1771607724837,11.81727405,83.28,83.241,4.27471581]
[1771607725014,0.14216157,83.301,83.251,4.27471581]
[1771607725219,0.28432314,83.299,83.261,4.27471581]
[1771607725548,11.81727405,83.3,83.261,4.27471581]
[1771607725712,11.81727405,83.28,83.25,4.27471581]
[1771607725917,3.73084881,83.289,83.25,4.27471581]
[1771607726110,3.73084881,83.289,83.252,4.27471581]
[1771607726313,12.00494603,83.299,83.252,4.27471581]
[1771607726531,12.00494603,83.299,83.251,12.01186772]
[1771607726532,11.81727405,83.3,83.261,4.27471581]
[1771607726734,12.00350502,83.309,83.261,4.27471581]
[1771607727115,12.00350502,83.309,83.251,42.04153703]
[1771607727116,11.81727405,83.32,83.271,4.27471581]
[1771607727314,11.81727405,83.32,83.281,4.27471581]
[1771607727719,12.00120012,83.325,83.281,4.27471581]
[1771607727918,11.81727405,83.32,83.281,4.27471581]
[1771607728333,3.73084881,83.35,83.291,4.27471581]
[1771607728535,15.54812286,83.35,83.301,4.27471581]
[1771607728737,29.98942199,83.363,83.311,4.27471581]
[1771607728738,11.81727405,83.36,83.311,4.27471581]
[1771607728921,11.99662542,83.357,83.311,4.27471581]
[1771607729116,11.81727405,83.36,83.321,4.27471581]
[1771607729420,11.99522672,83.367,83.331,4.27471581]
[1771607729816,11.81727405,83.36,83.331,4.27471581]
[1771607730545,3.73084881,83.358,83.321,42.00621691]
[1771607730728,11.81727405,83.36,83.322,4.27471581]
[1771607731438,11.99539604,83.366,83.322,4.27471581]
[1771607731840,11.81727405,83.36,83.322,4.27471581]
[1771607732037,3.73084881,83.37,83.331,4.27471581]
[1771607732334,15.59306999,83.37,83.333,4.27471581]
[1771607732927,3.73084881,83.37,83.333,4.27471581]
[1771607733223,11.86222118,83.37,83.333,4.27471581]
[1771607733439,11.86222118,83.38,83.334,4.27471581]
[1771607733623,11.86222118,83.38,83.332,42.000672]
[1771607733624,4.39621565,83.391,83.341,4.27471581]
[1771607733941,4.39621565,83.399,83.361,4.27471581]
[1771607734444,4.39621565,83.399,83.362,11.99587341]
[1771607734645,4.39621565,83.379,83.336,4.27471581]
[1771607734942,4.39621565,83.369,83.323,4.27471581]
[1771607735150,4.39621565,83.369,83.33,11.86222118]
[1771607735323,4.39621565,83.368,83.33,11.86222118]
[1771607735640,4.39621565,83.368,83.331,4.27471581]
[1771607735845,11.86222118,83.38,83.341,4.27471581]
[1771607736023,0.28432314,83.397,83.34,11.86222118]
[1771607736224,4.39621565,83.379,83.331,4.27471581]
[1771607736937,4.39621565,83.377,83.333,4.27471581]
[1771607737241,4.39621565,83.377,83.34,11.86222118]
[1771607737444,11.86222118,83.39,83.35,11.86222118]
[1771607737642,16.35262975,83.389,83.35,11.86222118]
[1771607737834,4.07631726,83.404,83.361,4.18902992]
[1771607738047,4.07631726,83.408,83.371,4.18902992]
[1771607738240,4.07631726,83.408,83.37,11.86222118]
[1771607738935,4.07631726,83.408,83.371,11.99457845]
[1771607739129,4.07631726,83.408,83.372,4.18902992]
[1771607739343,4.07631726,83.406,83.371,11.99457845]
[1771607740524,0.2,83.41,83.372,4.18902992]
[1771607740732,12.06222118,83.41,83.372,4.18902992]
[1771607740933,4.07631726,83.408,83.373,11.99429071]
[1771607741548,4.07631726,83.399,83.365,11.99542496]
[1771607741954,4.07631726,83.397,83.351,11.99745653]
[1771607742138,4.07631726,83.397,83.317,48.00920719]
[1771607742139,4.07631726,83.379,83.34,23.86126125]
[1771607742651,4.07631726,83.379,83.341,4.18902992]
[1771607743051,0.2,83.41,83.318,96.01668852]
[1771607743052,4.07631726,83.404,83.361,4.18902992]
[1771607743253,4.07631726,83.404,83.37,16.0512511]
[1771607743429,4.07631726,83.399,83.36,11.86222118]
[1771607743634,4.07631726,83.399,83.37,11.86222118]
[1771607743836,12.18901776,83.41,83.38,11.86222118]
[1771607744037,12.18901776,83.41,83.371,4.18902992]
[1771607744246,0.2,83.41,83.381,4.18902992]
[1771607744629,16.26534317,83.41,83.37,16.0512511]
[1771607744949,4.07631726,83.409,83.37,16.0512511]
[1771607745149,11.98925762,83.408,83.371,11.99457845]
[1771607745337,4.07631726,83.409,83.38,11.86222118]
[1771607745653,4.07631726,83.409,83.372,4.18902992]
[1771607745654,11.98911388,83.409,83.372,4.18902992]
[1771607745857,0.2,83.41,83.372,4.18902992]
[1771607746053,0.2,83.41,83.38,11.86222118]
[1771607746961,4.03555408,83.387,83.308,4.18902992]
[1771607747150,11.86222118,83.36,83.321,4.18902992]
[1771607747350,4.03555408,83.374,83.33,11.86222118]
[1771607747546,4.03555408,83.369,83.33,11.86222118]
[1771607747748,11.99313992,83.381,83.341,4.18902992]
[1771607748656,11.86222118,83.38,83.341,4.18902992]
[1771607748864,11.86222118,83.37,83.341,4.18902992]
[1771607749235,11.99357144,83.378,83.342,11.99875212]
[1771607749436,11.99357144,83.378,83.343,4.18902992]
[1771607749761,107.90217429,83.409,83.342,11.99875212]
[1771607749762,11.86222118,83.42,83.371,4.18902992]
[1771607750259,29.96777962,83.423,83.381,4.18902992]
[1771607750437,11.98911388,83.409,83.381,4.18902992]
[1771607750635,11.86222118,83.42,83.381,4.18902992]
[1771607750857,11.86222118,83.42,83.342,197.9794101]
[1771607750858,11.98422875,83.443,83.401,4.18902992]
[1771607751036,4.03555408,83.439,83.391,4.18902992]
[1771607751243,11.9849469,83.438,83.4,11.86222118]
[1771607751438,11.9849469,83.438,83.401,4.18902992]
[1771607751439,41.94731416,83.438,83.401,4.18902992]
[1771607751750,4.03555408,83.437,83.401,4.18902992]
[1771607751964,11.86222118,83.43,83.389,4.18902992]
[1771607752142,41.94731416,83.438,83.331,48.00080915]
[1771607752143,11.86222118,83.41,83.374,4.18902992]
[1771607752467,4.03555408,83.422,83.39,11.86222118]
[1771607752846,11.86222118,83.42,83.381,4.18902992]
[1771607753275,0.04035554,83.389,83.332,4.18902992]
[1771607753445,11.86222118,83.37,83.333,4.18902992]
[1771607753964,0.28432314,83.378,83.333,4.18902992]
[1771607754469,11.86222118,83.36,83.321,4.18902992]
[1771607754768,0.14216157,83.39,83.268,48.03753569]
[1771607754769,4.03555408,83.349,83.312,4.18902992]
[1771607755665,11.99788837,83.348,83.312,4.18902992]
[1771607755870,4.03555408,83.339,83.304,12.00422548]
[1771607756280,11.86222118,83.33,83.299,4.18902992]
[1771607756447,11.86222118,83.33,83.288,12.00653155]
[1771607756774,11.86222118,83.33,83.291,4.18902992]
[1771607757873,12.00062403,83.329,83.292,12.00595495]
[1771607758067,42.00218411,83.329,83.291,4.18902992]
[1771607758449,42.00218411,83.329,83.292,12.00595495]
[1771607758862,4.31987722,83.328,83.291,4.18902992]
[1771607759073,4.31987722,83.328,83.246,48.05027884]
[1771607759074,11.86222118,83.32,83.281,4.18902992]
[1771607760069,4.03555408,83.328,83.283,4.18902992]
[1771607760070,12.2852352,83.327,83.283,4.18902992]
[1771607760273,4.03555408,83.365,83.301,4.18902992]
[1771607760449,11.86222118,83.35,83.311,4.18902992]
[1771607760652,0.28432314,83.339,83.3,11.86222118]
[1771607760977,0.28432314,83.339,83.282,42.02588794]
[1771607760978,89.96689217,83.364,83.291,4.18902992]
[1771607761151,11.86222118,83.34,83.301,4.18902992]
[1771607761871,4.03555408,83.319,83.282,12.00739655]
[1771607762071,12.0022084,83.318,83.277,4.18902992]
[1771607762277,11.86222118,83.31,83.28,4.18902992]
[1771607762874,42.00772941,83.318,83.28,4.18902992]
[1771607763257,11.86222118,83.31,83.28,4.18902992]
[1771607763485,12.0022084,83.318,83.28,16.0512511]
[1771607763651,11.86222118,83.31,83.281,4.18902992]
[1771607764157,12.0022129,83.318,83.283,4.18902992]
[1771607764353,23.86270119,83.33,83.291,4.18902992]
[1771607764566,11.86222118,83.34,83.301,4.18902992]
[1771607764869,4.03555408,83.359,83.282,42.02588794]
[1771607764870,11.86222118,83.35,83.311,4.18902992]
[1771607765080,11.86222118,83.37,83.331,4.18902992]
[1771607765272,11.86222118,83.37,83.282,294.1812156]
[1771607765273,11.86222118,83.35,83.319,4.18902992]
[1771607765490,11.86222118,83.34,83.3,11.86222118]
[1771607765778,11.86222118,83.34,83.301,4.18902992]
[1771607766687,11.99918405,83.339,83.303,4.30889883]
[1771607767266,11.99803232,83.347,83.311,4.28310991]
[1771607768584,11.99673688,83.356,83.321,4.28310991]
[1771607769083,11.86222118,83.35,83.321,4.28310991]
[1771607769286,11.99673688,83.356,83.321,4.28310991]
[1771607770067,11.99544173,83.365,83.321,4.28310991]
[1771607770569,16.03185921,83.359,83.323,4.28310991]
[1771607770764,11.99575924,83.363,83.331,4.28310991]
[1771607771977,11.86222118,83.36,83.331,4.28310991]
[1771607772174,4.03555408,83.36,83.321,12.00173837]
[1771607772372,15.89777526,83.36,83.322,4.28310991]
[1771607772776,11.86222118,83.36,83.322,4.28310991]
[1771607772975,11.86222118,83.34,83.301,4.28310991]
[1771607773895,12.00062403,83.329,83.301,4.28310991]
[1771607774277,12.00062403,83.329,83.302,12.00451369]
[1771607774485,12.00062403,83.329,83.302,16.2876236]
[1771607774682,12.00062403,83.329,83.303,4.28310991]
[1771607774883,11.99931866,83.339,83.303,4.28310991]
[1771607775773,11.86222118,83.32,83.291,4.28310991]
[1771607775969,11.86222118,83.32,83.293,12.00574445]
[1771607776391,12.00185135,83.321,83.293,12.00574445]
[1771607776785,12.00185135,83.321,83.294,4.28310991]
[1771607777389,11.86222118,83.31,83.274,4.28310991]
[1771607777999,12.00312339,83.312,83.28,11.86222118]
[1771607778187,12.00312339,83.312,83.281,4.28310991]
[1771607779278,23.86424708,83.32,83.281,4.28310991]
[1771607779678,12.0020259,83.32,83.281,4.28310991]
[1771607779894,23.86424708,83.32,83.281,4.28310991]
[1771607780094,23.86424708,83.32,83.283,4.28310991]
[1771607780492,12.0020259,83.32,83.283,4.28310991]
[1771607780704,23.86424708,83.32,83.283,4.28310991]
[1771607781009,29.99812864,83.339,83.291,4.28310991]
[1771607781186,11.86222118,83.33,83.291,4.28310991]
[1771607781511,11.99947202,83.337,83.291,4.28310991]
[1771607781699,11.99947202,83.337,83.3,11.86222118]
[1771607782005,11.86222118,83.34,83.303,4.28310991]
[1771607782304,11.86222118,83.33,83.303,4.28310991]
[1771607782512,4.03555408,83.347,83.303,4.28310991]
[1771607782798,23.85982165,83.35,83.311,4.28310991]
[1771607783180,11.99760047,83.35,83.311,4.28310991]
[1771607783504,4.03555408,83.339,83.301,12.00454516]
[1771607783710,11.86222118,83.33,83.29,4.28310991]
[1771607784003,11.99918405,83.339,83.303,4.28310991]
[1771607785278,11.99918405,83.339,83.31,16.14533109]
[1771607786498,11.86222118,83.34,83.31,4.28310991]
[1771607786703,41.99311312,83.347,83.311,4.28310991]
[1771607787199,11.99803232,83.347,83.311,4.28310991]
[1771607787600,11.12697944,83.347,83.312,4.28310991]
[1771607787805,11.12697944,83.347,83.321,4.28310991]
[1771607788795,11.86222118,83.35,83.321,4.28310991]
[1771607789385,11.86222118,83.35,83.31,11.86222118]
[1771607789590,4.03555408,83.349,83.312,4.28310991]
[1771607789999,11.86222118,83.35,83.312,4.28310991]
[1771607790707,34.02750515,83.356,83.321,4.28310991]
[1771607791011,11.86222118,83.35,83.321,4.28310991]
[1771607791205,46.02424203,83.356,83.321,4.28310991]
[1771607791414,4.03555408,83.349,83.311,4.28310991]
[1771607792711,4.03555408,83.339,83.243,4.28310991]
[1771607792886,11.86642422,83.31,83.273,4.28310991]
[1771607793307,12.00249651,83.316,83.281,4.28310991]
[1771607793716,12.00076804,83.328,83.291,4.28310991]
[1771607793888,11.86642422,83.3,83.269,4.28310991]
[1771607794092,11.86642422,83.31,83.271,4.28310991]
[1771607794609,4.03555408,83.309,83.271,4.28310991]
[1771607794915,4.31987722,83.327,83.271,4.28310991]
[1771607795214,12.00350502,83.309,83.273,4.28310991]
[1771607795410,11.99760047,83.35,83.301,4.28310991]
[1771607795626,11.99760047,83.35,83.321,4.28310991]
[1771607795919,11.99601732,83.361,83.321,4.28310991]
[1771607796117,11.86642422,83.36,83.321,4.28310991]
[1771607796506,11.99601732,83.361,83.321,4.28310991]
[1771607796810,11.86642422,83.36,83.321,4.28310991]
[1771607797220,11.99630513,83.359,83.323,4.46205431]
[1771607797425,11.86642422,83.34,83.314,4.46205431]
[1771607797609,11.86642422,83.35,83.314,4.46205431]
[1771607797929,11.86642422,83.35,83.32,4.46205431]
[1771607798921,4.16962881,83.348,83.31,11.86642422]
[1771607799310,4.16962881,83.348,83.311,12.00321686]
[1771607799525,11.99720995,83.353,83.32,11.86642422]
[1771607800509,11.86642422,83.35,83.311,12.00321686]
[1771607800709,16.16683876,83.353,83.32,11.86642422]
[1771607800920,11.86642422,83.35,83.32,4.46205431]
[1771607801128,16.16683876,83.353,83.321,4.46205431]
[1771607802822,41.98719064,83.359,83.323,4.46205431]
[1771607803024,46.15681945,83.359,83.323,4.46205431]
[1771607803328,4.16962881,83.358,83.323,4.46205431]
[1771607804028,11.86642422,83.35,83.323,4.46205431]
[1771607804338,4.16962881,83.358,83.323,4.46205431]
[1771607805530,4.16962881,83.378,83.341,4.46205431]
[1771607805712,59.95110258,83.402,83.33,16.32847853]
[1771607805713,11.86642422,83.37,83.33,16.32847853]
[1771607805908,11.86642422,83.37,83.331,4.46205431]
[1771607806320,4.16962881,83.369,83.331,4.46205431]
[1771607806834,4.16962881,83.376,83.341,4.46205431]
[1771607807529,4.16962881,83.369,83.341,4.46205431]
[1771607807830,0.28432314,83.377,83.341,4.46205431]
[1771607808012,4.45395195,83.368,83.334,4.46205431]
[1771607808213,4.16962881,83.359,83.325,4.46205431]
[1771607808632,4.16962881,83.359,83.313,30.00718552]
[1771607808633,4.16962881,83.368,83.331,4.46205431]
[1771607808822,11.86642422,83.36,83.331,4.46205431]
[1771607809022,4.16962881,83.359,83.331,4.46205431]
[1771607809422,4.16962881,83.369,83.331,4.46205431]
[1771607809732,16.03605303,83.38,83.341,4.46205431]
[1771607809937,11.9934276,83.379,83.351,4.46205431]
[1771607812114,142.86497843,84.388,83.353,4.46205431]
[1771607812115,4.16962881,83.388,83.353,4.46205431]
[1771607813538,4.16962881,83.379,83.344,16.46040781]
[1771607813736,11.86642422,83.37,83.344,4.46205431]
[1771607814035,4.16962881,83.369,83.335,4.46205431]
[1771607814239,4.16962881,83.369,83.281,3.69383402]
[1771607814240,4.45395195,83.359,83.32,11.86642422]
[1771607814541,4.16962881,83.349,83.321,4.46205431]
[1771607814726,4.16962881,83.358,83.321,4.46205431]
[1771607816423,11.99659296,83.357,83.323,4.46205431]
[1771607817042,4.16962881,83.356,83.321,4.46205431]
[1771607817544,4.16962881,83.356,83.322,12.00163222]
[1771607817731,16.16492665,83.366,83.331,4.46205431]
[1771607818539,11.99529784,83.366,83.341,4.46205431]
[1771607818733,11.9934276,83.379,83.351,4.46205431]
[1771607819340,11.9934276,83.379,83.36,11.86642422]
[1771607820143,11.9934276,83.379,83.361,4.46205431]
[1771607820445,4.16962881,83.419,83.371,4.46205431]
[1771607820620,4.16962881,83.417,83.383,4.46205431]
[1771607820819,4.16962881,83.409,83.375,4.46205431]
[1771607821024,0.28432314,83.417,83.381,4.46205431]
[1771607821221,11.98782037,83.418,83.391,4.46205431]
[1771607821445,4.16962881,83.417,83.382,4.46205431]
[1771607821837,4.16962881,83.409,83.372,4.46205431]
[1771607822142,4.16962881,83.399,83.371,4.46205431]
[1771607822442,4.16962881,83.387,83.35,11.86642422]
[1771607822648,4.16962881,83.369,83.33,16.32847853]
[1771607823038,11.86642422,83.36,83.33,4.46205431]
[1771607823240,4.16962881,83.382,83.341,4.46205431]
[1771607823543,4.16962881,83.376,83.331,4.46205431]
[1771607823750,4.16962881,83.369,83.331,4.46205431]
[1771607823954,4.16962881,83.359,83.321,4.46205431]
[1771607824457,4.16962881,83.359,83.331,4.46205431]
[1771607824628,4.16962881,83.359,83.289,90.04790547]
[1771607824629,4.16962881,83.357,83.32,11.86642422]
[1771607824943,4.16962881,83.357,83.322,4.46205431]
[1771607825544,4.16962881,83.349,83.315,4.46205431]
[1771607825936,4.16962881,83.349,83.32,11.86642422]
[1771607826147,11.99547059,83.365,83.331,4.46205431]
[1771607826629,11.99385914,83.376,83.342,16.25057423]
[1771607826824,16.39410542,83.376,83.342,4.25182211]
[1771607827027,11.99322443,83.381,83.351,4.25182211]
[1771607827233,4.1642002,83.395,83.361,4.31037196]
[1771607827542,4.1642002,83.389,83.35,16.17679618]
[1771607827943,4.1642002,83.389,83.35,4.31037196]
[1771607828153,4.1642002,83.389,83.351,4.31037196]
[1771607828661,0.14216157,83.4,83.342,11.99875212]
[1771607828662,11.86642422,83.38,83.342,11.99875212]
[1771607828840,11.86642422,83.38,83.343,4.31037196]
[1771607829046,4.1642002,83.387,83.35,11.86642422]
[1771607829371,4.1642002,83.397,83.361,4.31037196]
[1771607829531,53.29691809,83.445,83.379,4.31037196]
[1771607829532,11.86642422,83.41,83.379,4.31037196]
[1771607830047,4.1642002,83.417,83.38,11.86642422]
[1771607830251,11.86642422,83.4,83.364,4.31037196]
[1771607830441,4.1642002,83.389,83.35,11.86642422]
[1771607830629,41.97246606,83.388,83.351,4.31037196]
[1771607830831,0.28432314,83.387,83.353,4.31037196]
[1771607831037,11.86642422,83.38,83.353,4.31037196]
[1771607831230,4.44852334,83.387,83.353,4.31037196]
[1771607832353,4.1642002,83.379,83.344,4.31037196]
[1771607832535,4.1642002,83.369,83.334,16.31024027]
[1771607832943,16.03062442,83.36,83.321,4.31037196]
[1771607833131,16.03062442,83.36,83.331,4.31037196]
[1771607833333,4.1642002,83.36,83.331,4.31037196]
[1771607834152,4.1642002,83.36,83.289,3.69383402]
[1771607834153,11.99501007,83.368,83.341,4.31037196]
[1771607834538,3.70165461,83.399,83.361,4.31037196]
[1771607835056,45.66894067,83.399,83.361,4.31037196]
[1771607835261,16.03062442,83.38,83.347,16.30829104]
[1771607835435,16.03062442,83.38,83.305,48.01615692]
[1771607835436,4.1642002,83.38,83.35,11.86642422]
[1771607835641,4.1642002,83.379,83.35,4.31037196]
[1771607836241,4.1642002,83.379,83.34,16.17679618]
[1771607836454,11.86642422,83.37,83.34,4.31037196]
[1771607836754,4.1642002,83.369,83.335,11.99972033]
[1771607837435,4.1642002,83.359,83.323,12.00148818]
[1771607837631,4.1642002,83.359,83.324,4.31037196]
[1771607838167,4.1642002,83.367,83.331,4.31037196]
[1771607839160,11.99501007,83.368,83.34,16.17679618]
[1771607839347,4.1642002,83.376,83.341,4.31037196]
[1771607839348,11.99446625,83.372,83.341,4.31037196]
[1771607839655,11.9934276,83.379,83.35,11.86642422]
[1771607839847,11.9934276,83.379,83.351,4.31037196]
[1771607840154,4.1642002,83.376,83.342,4.31037196]
[1771607840858,0.28432314,83.368,83.323,4.31037196]
[1771607841039,0.28432314,83.368,83.33,11.86642422]
[1771607841238,4.1642002,83.367,83.33,11.86642422]
[1771607841533,4.1642002,83.367,83.33,16.17679618]
[1771607841742,4.1642002,83.365,83.33,16.17679618]
[1771607841942,41.98354244,83.366,83.33,16.17679618]
[1771607841943,4.1642002,83.359,83.33,4.31037196]
[1771607842358,4.1642002,83.359,83.33,11.86642422]
[1771607842562,11.99529784,83.366,83.332,4.31037196]
[1771607843251,4.1642002,83.359,83.32,16.17679618]
[1771607843454,11.86642422,83.34,83.311,4.31037196]
[1771607843656,11.99630513,83.359,83.331,4.31037196]
[1771607844045,11.86642422,83.35,83.321,4.31037196]
[1771607844245,4.1642002,83.358,83.321,4.31037196]
[1771607846266,4.1642002,83.337,83.3,11.86642422]
[1771607846566,11.86642422,83.32,83.292,4.31037196]
[1771607846867,4.1642002,83.327,83.293,12.00581081]
[1771607847071,4.1642002,83.327,83.292,4.31037196]
[1771607847456,4.1642002,83.327,83.294,4.31037196]
[1771607847972,11.99918405,83.339,83.301,4.31037196]
[1771607848174,11.99918405,83.339,83.311,4.31037196]
[1771607848474,11.99761178,83.35,83.321,4.31037196]
[1771607848769,4.1642002,83.357,83.33,11.86642422]
[1771607848965,11.86642422,83.36,83.33,11.86642422]
[1771607849168,11.99673688,83.356,83.33,11.86642422]
[1771607849340,16.16093708,83.356,83.321,4.31037196]
[1771607850481,16.16093708,83.356,83.322,12.00163222]
[1771607850655,16.16093708,83.356,83.322,16.31200418]
[1771607850855,16.16093708,83.356,83.323,4.31037196]
[1771607851261,11.99544173,83.365,83.331,4.31037196]
[1771607851762,11.86642422,83.37,83.341,4.31037196]
[1771607851963,4.1642002,83.359,83.322,12.00163222]
[1771607852175,4.1642002,83.359,83.322,16.31200418]
[1771607852477,41.97649316,83.38,83.322,16.31200418]
[1771607852478,4.1642002,83.379,83.351,4.31037196]
[1771607852675,11.99357144,83.378,83.351,4.31037196]
[1771607852879,11.99357144,83.378,83.352,16.30768456]
[1771607853377,11.99227697,83.387,83.353,4.31037196]
[1771607853878,4.1642002,83.386,83.353,4.31037196]
[1771607854555,11.9925646,83.385,83.353,4.31037196]
[1771607854755,11.9925646,83.385,83.353,16.30745343]
[1771607854980,11.86024724,83.38,83.353,4.31037196]
[1771607855167,41.97397612,83.385,83.303,4.31037196]
[1771607855168,4.1642002,83.369,83.303,4.31037196]
[1771607855480,4.44852334,83.384,83.341,4.31037196]
[1771607855661,4.44852334,83.384,83.294,42.01983335]
[1771607855662,4.1642002,83.405,83.361,4.31037196]
[1771607855862,4.1642002,83.399,83.361,4.31037196]
[1771607856480,11.86024724,83.38,83.305,4.31037196]
[1771607856781,11.86024724,83.38,83.242,26.85249534]
[1771607856782,4.1642002,83.359,83.321,4.31037196]
[1771607857886,4.59731914,83.367,83.331,4.0662591]
[1771607858181,11.86024724,83.36,83.331,4.0662591]
[1771607858376,4.312996,83.367,83.331,4.0662591]
[1771607858764,4.312996,83.367,83.34,11.86024724]
[1771607858962,11.86024724,83.37,83.341,4.0662591]
[1771607859571,11.86024724,83.37,83.332,12.000192]
[1771607859572,4.312996,83.367,83.332,16.0664511]
[1771607859775,41.98107313,83.371,83.333,4.0662591]
[1771607860270,11.99462701,83.371,83.341,4.0662591]
[1771607860653,11.99376581,83.377,83.351,4.0662591]
[1771607861174,11.99376581,83.377,83.341,4.0662591]
[1771607861378,4.312996,83.369,83.334,4.0662591]
[1771607864464,11.99501007,83.368,83.335,11.99976]
[1771607864664,11.99501007,83.368,83.336,4.0662591]
[1771607865071,11.99501007,83.368,83.341,4.0662591]
[1771607865877,4.312996,83.367,83.331,4.0662591]
[1771607866072,11.99501007,83.368,83.32,11.86024724]
[1771607866073,4.312996,83.359,83.32,11.86024724]
[1771607866378,4.312996,83.359,83.32,15.92650634]
[1771607866571,4.312996,83.357,83.322,4.0662591]
[1771607867884,4.312996,83.349,83.31,4.0662591]
[1771607868101,4.312996,83.349,83.253,48.04600256]
[1771607868102,4.312996,83.339,83.301,4.0662591]
[1771607868672,4.312996,83.329,83.29,15.92650634]
[1771607868965,11.86024724,83.31,83.28,4.0662591]
[1771607869397,4.312996,83.309,83.27,11.86024724]
[1771607869570,4.312996,83.289,83.251,4.0662591]
[1771607869764,4.312996,83.3,83.271,4.0662591]
[1771607869975,4.312996,83.307,83.271,4.0662591]
[1771607870178,4.312996,83.289,83.25,11.86024724]
[1771607870363,4.312996,83.289,83.26,11.86024724]
[1771607870562,12.00653155,83.288,83.26,11.86024724]
[1771607870764,12.00653155,83.288,83.261,4.0662591]
[1771607871186,4.312996,83.287,83.252,12.01159069]
[1771607871493,4.312996,83.287,83.253,4.0662591]
[1771607872572,12.00681987,83.286,83.26,11.86024724]
[1771607872771,4.312996,83.299,83.261,4.0662591]
[1771607872971,16.31794203,83.299,83.27,15.92650634]
[1771607873392,4.312996,83.298,83.27,4.0662591]
[1771607873870,4.312996,83.298,83.261,4.0662591]
[1771607874183,4.312996,83.296,83.261,4.0662591]
[1771607874388,4.312996,83.305,83.27,11.86024724]
[1771607874578,12.00422548,83.304,83.273,4.0662591]
[1771607874780,0.14216157,83.33,83.281,4.0662591]
[1771607874781,4.312996,83.315,83.281,4.0662591]
[1771607875187,4.312996,83.315,83.29,11.86024724]
[1771607875892,4.312996,83.315,83.281,4.0662591]
[1771607876593,12.00278464,83.314,83.283,4.0662591]
[1771607876980,16.31563702,83.315,83.29,11.86024724]
[1771607877185,12.00264102,83.315,83.291,4.0662591]
[1771607877485,4.312996,83.348,83.301,4.0662591]
[1771607877690,11.99774442,83.349,83.301,4.0662591]
[1771607877889,11.86024724,83.37,83.32,15.92650634]
[1771607878090,29.98565512,83.374,83.31,11.86024724]
[1771607878091,11.86024724,83.35,83.31,11.86024724]
[1771607878392,4.312996,83.349,83.31,11.86024724]
[1771607878591,4.312996,83.349,83.311,4.0662591]
[1771607879177,4.312996,83.347,83.311,4.0662591]
[1771607879488,11.86024724,83.34,83.311,4.0662591]
[1771607879672,4.312996,83.339,83.303,4.0662591]
[1771607880293,4.312996,83.339,83.31,11.86024724]
[1771607880596,11.99932803,83.338,83.304,12.00422548]
[1771607880779,4.312996,83.337,83.303,4.0662591]
[1771607880980,4.312996,83.337,83.304,4.0662591]
[1771607881176,4.312996,83.329,83.296,12.00535173]
[1771607881380,4.312996,83.329,83.297,4.0662591]
[1771607881586,4.312996,83.327,83.29,11.86024724]
[1771607881793,4.312996,83.327,83.288,4.0662591]
[1771607882090,4.312996,83.317,83.28,11.86024724]
[1771607882294,4.312996,83.309,83.278,4.0662591]
[1771607882486,4.312996,83.309,83.28,11.86024724]
[1771607882694,12.0036491,83.308,83.281,12.00754073]
[1771607882883,12.0036491,83.308,83.281,16.07379983]
[1771607883212,4.312996,83.307,83.28,4.0662591]
[1771607883396,4.312996,83.307,83.272,4.0662591]
[1771607884900,4.312996,83.329,83.291,4.0662591]
[1771607885102,4.312996,83.319,83.281,4.0662591]
[1771607885689,4.312996,83.309,83.273,12.00869429]
[1771607885893,4.312996,83.309,83.27,11.86024724]
[1771607886099,4.08678494,83.327,83.291,4.15334033]
[1771607886595,4.08678494,83.336,83.301,4.15334033]
[1771607886786,11.86024724,83.34,83.31,4.15334033]
[1771607886985,4.08678494,83.339,83.31,4.15334033]
[1771607887187,4.08678494,83.339,83.301,4.09076214]
[1771607887392,0.28432314,83.338,83.302,4.09076214]
[1771607887588,4.08678494,83.339,83.302,4.09076214]
[1771607887908,11.86024724,83.33,83.302,4.09076214]
[1771607888080,4.39185123,83.329,83.289,4.09076214]
[1771607888403,11.86024724,83.33,83.289,4.09076214]
[1771607888404,4.67617437,83.328,83.291,4.09076214]
[1771607888700,4.39185123,83.328,83.291,4.09076214]
[1771607888911,11.99947202,83.337,83.301,4.09076214]
[1771607889206,4.39185123,83.329,83.292,16.09671709]
[1771607889382,4.39185123,83.329,83.293,4.09076214]
[1771607891788,12.00044214,83.331,83.301,4.09076214]
[1771607891988,16.25209847,83.33,83.301,4.09076214]
[1771607892398,4.39185123,83.366,83.311,4.09076214]